[Event "7th Sharjah Masters 2024"]
[Site "Sharjah"]
[Date "2024.05.21"]
[Round "8.12"]
[White "Maurizzi, Marc`Andria"]
[Black "Sindarov, Javokhir"]
[Result "1/2-1/2"]
[ECO "D45"]
[WhiteElo "2618"]
[BlackElo "2684"]
[Annotator "TA"]
[PlyCount "102"]
[EventDate "2024.05.13"]
[EventType "swiss"]
[EventCountry "UAE"]
[SourceTitle "playchess.com"]
[Source "ChessBase"]
[SourceQuality "1"]
[TimeControl "5400+30"]

{[%evp 16,102,26,19,12,13,25,20,18,13,22,7,27,22,24,20,26,20,20,18,10,10,15,10,19,14,18,15,14,12,22,5,20,16,47,9,11,10,8,0,0,0,0,0,0,0,41,41,50,41,50,18,25,33,18,18,118,18,109,109,109,0,31,7,15,0,83,16,16,16,16,0,25,0,16,0,25,25,25,25,25,25,25,25,25,0,25,0,25]} 1. d4 {[%emt 1:31:00]} Nf6 {[%emt 1:31:00]} 2. c4 {[%emt 0:00:30]} e6 {[%emt 0:00:30]} 3. Nf3 {[%emt 0:00:30]} d5 {[%emt 0:00:30]} 4. Nc3 {[%emt 0:00:30]} c6 {[%emt 0:00:30]} 5. e3 {[%emt 0:00:30]} Nbd7 {[%emt 0:00:30]} 6. Be2 {[%emt 0:00:30]} dxc4 {[%emt 0:00:30]} 7. a4 {[%emt 0:00:30]} Bd6 $1 {[%emt 0:00:30] 7...Bd6 scores better than 7...Bb4.} 8. Nd2 {[%emt 0:00:30] D45: Semi-Slav: 5 e3.} e5 {[%emt 0:00:30]} 9. Nxc4 {[%emt 0:00:30]} Bc7 {[%emt 0:00:30]} 10. b3 {[%emt 0:00:30]} O-O {[%emt 0:00:30]} 11. Ba3 {[%emt 0:00:30]} Re8 $1 {[%emt 0:00:30]} 12. O-O {[%emt 0:00:30]} e4 {[%emt 0:00:30]} 13. d5 {[%emt 0:00:30]} Nxd5 {[%emt 0:00:30]} 14. Nxd5 {[%emt 0:00:30]} cxd5 {[%emt 0:00:30]} 15. Qxd5 {[%emt 0:00:30]} Nf6 {[%emt 0:00:30]} 16. Qxd8 {[%emt 0:00:30]} Rxd8 {[%emt 0:00:30]} 17. Rfc1 $146 {[%emt 0:00:30]} ({Predecessor:} 17. Be7 Rd7 18. Bc5 b6 19. Bd4 Bb7 20. Rfc1 Bd5 21. Rc2 Re8 22. Nd2 Red8 23. Bb5 {1-0 Zhong,K (2143)-Gueorguiev,V (1917) Quebec op Montreal 2023 (2)}) 17... Be6 {[%emt 0:00:30]} 18. Bc5 {[%emt 0:00:30]} Ng4 {[%emt 0:00:30]} 19. h3 {[%emt 0:00:30]} Ne5 {[%emt 0:00:30]} 20. Bd4 {[%emt 0:00:30]} Nc6 {[%emt 0:00:30]} 21. Bc3 {[%emt 0:00:30]} a5 {[%emt 0:00:30]} 22. Rd1 {[%emt 0:00:30]} f6 {[%emt 0:00:30]} 23. h4 {[%emt 0:00:30]} Kf7 {[%emt 0:00:30]} 24. h5 {[%emt 0:00:30]} Ne5 {[%emt 0:00:30]} (24... f5 {looks sharper.} 25. f3 Nb4 26. fxe4 fxe4 27. Rd4 Rxd4 28. Rf1+ Kg8) 25. Nxe5+ {[%emt 0:00:30]} Bxe5 {[%emt 0:00:30]} 26. Bxe5 {[%emt 0:00:30]} fxe5 {[%emt 0:00:30]} 27. Bc4 {[%emt 0:00:30]} Rxd1+ {[%emt 0:00:30]} 28. Rxd1 {[%emt 0:00:30]} Bxc4 {[%emt 0:00:30]} 29. bxc4 {[%emt 0:00:30]} Rc8 $1 {[%emt 0:00:30]} 30. Rd5 {[%emt 0:00:30]} Rxc4 {[%emt 0:00:30]} 31. Rxa5 {[%emt 0:00:30]} Kf6 {[%emt 0:00:30]} 32. Kh2 {[%emt 0:00:30]} g6 {[%emt 0:00:30]} 33. h6 {[%emt 0:00:30]} Kg5 {[%emt 0:00:30]} 34. Rxe5+ {[%emt 0:00:30]} Kxh6 {[%emt 0:00:30]} 35. a5 {[%emt 0:00:30]} Ra4 {[%emt 0:00:30]} (35... Rb4 $1 $11) 36. Kg3 {[%emt 0:00:30]} (36. Rb5 $1 $16) 36... Ra1 {[%emt 0:00:30]} (36... Rb4 $11) 37. Rb5 $1 $16 {[%emt 0:00:30]} ({Much less strong is} 37. Rxe4 Rxa5 38. Rh4+ Kg7 $11) 37... Ra2 {[%emt 0:00:30] [#]} 38. Re5 {[%emt 0:00:30]} ({But not} 38. Rxb7 $6 Rxa5 39. Re7 Ra4 $11) (38. f3 $1 $16 {[%cal Rf3e4]}) 38... Ra1 $14 {[%emt 0:00:30]} 39. Rc5 {[%emt 0:00:30]} Ra3 {[%emt 0:00:30]} 40. Rb5 {[%emt 0:00:30]} (40. Rc4 $11) 40... Ra2 $16 {[%emt 0:00:30] [#]} 41. Rxb7 {[%emt 0:00:30]} ({White should play} 41. f3 $1 $16 {[%cal Rf3e4]}) 41... Rxa5 $11 {[%emt 0:00:30]} 42. Re7 {[%emt 0:00:30]} Ra4 $1 {[%emt 0:00:30]} 43. Kh4 {[%emt 0:00:30]} Ra2 {[%emt 0:00:30]} 44. Kg3 {[%emt 0:00:30]} (44. g4 $5 g5+ $8 45. Kg3 $11) 44... Ra4 {[%emt 0:00:30]} 45. Kh4 {[%emt 0:00:30]} Ra2 {[%emt 0:00:30]} 46. g4 {[%emt 0:00:30]} g5+ $1 {[%emt 0:00:30]} 47. Kg3 {[%emt 0:00:30]} Ra4 $1 {[%emt 0:00:30]} 48. Re6+ {[%emt 0:00:30]} Kg7 {[%emt 0:00:30]} 49. Re5 {[%emt 0:00:30]} Kg6 {[%emt 0:00:30]} 50. Re6+ {[%emt 0:00:30]} Kg7 {[%emt 0:00:30]} 51. Re5 Kg6 {[%emt 0:00:30]} 1/2-1/2

[Event "7th Sharjah Masters 2024"]
[Site "Sharjah"]
[Date "2024.05.21"]
[Round "8.13"]
[White "Gurel, Ediz"]
[Black "Martirosyan, Haik M."]
[Result "1-0"]
[ECO "C07"]
[WhiteElo "2578"]
[BlackElo "2679"]
[Annotator "TA"]
[PlyCount "125"]
[EventDate "2024.05.13"]
[EventType "swiss"]
[EventCountry "UAE"]
[SourceTitle "playchess.com"]
[Source "ChessBase"]
[SourceQuality "1"]
[TimeControl "5400+30"]

{[%evp 73,125,-287,-298,-306,-290,-237,-13,-15,-11,-8,-24,-267,-6,-6,-1,-3,-6,-8,-8,-8,-8,-8,-8,-8,-8,-26,-33,-15,-15,-13,-13,-17,-17,-14,-16,-8,-17,-16,447,456,539,548,433,441,1379,421,29968,29968,29979,29980,29982,29983,29988,29989]} 1. e4 {[%emt 0:00:05]} e6 {[%emt 0:02:34]} 2. d4 {[%emt 0:00:26]} d5 {[%emt 0:00:08]} 3. Nd2 {[%emt 0:01:38]} c5 {[%emt 0:00:08]} 4. Ngf3 {[%emt 0:00:52]} cxd4 {[%emt 0:00:10]} 5. Nxd4 {[%emt 0:00:57]} Nc6 {[%emt 0:01:12]} 6. Bb5 {[%emt 0:01:29]} Bd7 {[%emt 0:00:09]} 7. Nxc6 {[%emt 0:00:06]} bxc6 {[%emt 0:00:06]} 8. Bd3 {[%emt 0:00:04]} Bd6 {[%emt 0:01:23]} 9. Qe2 {[%emt 0:00:31]} Qc7 {[%emt 0:01:21]} 10. Nf3 {[%emt 0:03:07]} dxe4 {[%emt 0:02:05]} 11. Qxe4 {[%emt 0:00:34]} Nf6 {[%emt 0:00:22]} 12. Qh4 {[%emt 0:00:11]} c5 {[%emt 0:04:36]} 13. Bh6 {[%emt 0:05:50]} Rg8 {[%emt 0:04:00]} 14. Bxg7 {[%emt 0:18:09]} Nd5 {[%emt 0:03:46]} 15. Bh6 {[%emt 0:07:43]} Be7 {[%emt 0:18:50]} 16. Qe4 {[%emt 0:00:45]} Rb8 {[%emt 0:19:09]} 17. Ne5 {[%emt 0:05:51]} Rb4 {[%emt 0:01:05]} 18. c4 {[%emt 0:05:38]} Nf6 {[%emt 0:01:29]} 19. Qe2 {[%emt 0:01:15]} Rxg2 {[%emt 0:00:43]} 20. a3 {[%emt 0:05:45]} Rb8 {[%emt 0:03:44]} 21. O-O-O {[%emt 0:00:48]} Bd6 {[%emt 0:01:44]} 22. Nxd7 {[%emt 0:07:31]} Nxd7 {[%emt 0:03:58]} 23. Be4 {[%emt 0:02:18]} Rxh2 {[%emt 0:03:53]} 24. Rxh2 {[%emt 0:01:07]} Bxh2 {[%emt 0:00:01]} 25. Kb1 {[%emt 0:00:55]} Be5 {[%emt 0:01:08]} 26. Bc1 {[%emt 0:00:05]} Nf6 {[%emt 0:01:00]} 27. Bc2 {[%emt 0:01:15]} Bf4 {[%emt 0:03:16]} 28. Ka2 {[%emt 0:02:02]} Ke7 {[%emt 0:00:59]} 29. Bxf4 {[%emt 0:01:15]} Qxf4 {[%emt 0:00:02]} 30. Qd3 {[%emt 0:00:05]} h5 {[%emt 0:03:59]} 31. b4 {[%emt 0:02:37]} cxb4 {[%emt 0:01:54]} 32. axb4 {[%emt 0:00:08]} Ng4 {[%emt 0:01:09]} 33. b5 {[%emt 0:04:10]} Qxf2 {[%emt 0:02:09]} 34. Qd6+ {[%emt 0:01:37]} Kf6 {[%emt 0:00:01]} 35. Rd2 {[%emt 0:00:05]} Qb6 {[%emt 0:02:54]} 36. Qa3 {[%emt 0:03:34]} Rc8 {[%emt 0:02:56]} 37. Rd7 {[%emt 0:04:30]} Rxc4 {[%emt 0:00:59]} 38. Qe7+ {[%emt 0:00:12]} Ke5 {[%emt 0:00:10]} 39. Bb3 {[%emt 0:00:29]} Rf4 $2 {[%emt 0:04:01]} (39... Rd4 $19 {...Qa5+ is the strong threat.} 40. Rxa7 Rd2+ (40... Qxb5 41. Qc7+ Ke4 42. Bc2+ Ke3 43. Qc3+ Ke2 44. Qxd4 $18) 41. Ka3 Qxb5 42. Qc7+ (42. Qg5+ f5 $19) 42... Kf6 43. Qxf7+ Kg5 44. Qe7+ Nf6 (44... Kf4 45. Ra4+ Kg3 46. Qxe6 $17)) 40. Rd5+ $11 {[%emt 0:02:22]} Ke4 {[%emt 0:00:00]} 41. Qb4+ {[%emt 0:00:05]} Kf3 {[%emt 0:00:41]} 42. Bd1+ $2 {[%emt 0:03:14]} (42. Rd3+ $11 Ne3 43. Bd1+ Kg3 44. Qe1+ Rf2+ 45. Kb1 (45. Ka1 Kg2 $15) 45... Qxb5+ 46. Rb3 Qf5+ 47. Kc1) 42... Kg3 $2 {[%emt 0:01:26]} (42... Kg2 $1 $19 43. Qxf4 exd5 44. Bxg4 hxg4 (44... Qa5+ 45. Kb3 $15) 45. Qxg4+ Kf2 46. Qh4+ (46. Qf5+ Ke1 $17) 46... Ke3 47. Qe1+ Kf3 48. Qd1+ (48. Qh1+ $2 Kg3 $19) 48... Ke4 49. Qe2+ Qe3 50. Qc2+ Qd3 51. Qg2+ Ke3) 43. Rd3+ $1 $11 {[%emt 0:00:04]} Ne3 {[%emt 0:00:05]} 44. Qc3 {[%emt 0:04:19]} Re4 {[%emt 0:01:41]} (44... Rf2+ $2 45. Ka1 Kf4 46. Rd4+ (46. Bxh5 $2 e5 $19) 46... Kf5 47. Qxe3 $18) (44... Kf2 $5 45. Qd2+ $8 (45. Bxh5 $2 Ra4+ 46. Kb1 Qxb5+ 47. Qb2+ Qxb2+ 48. Kxb2 f6 $19) 45... Kg1 46. Rxe3 (46. Qxe3+ Qxe3 47. Rxe3 h4 $15) 46... Rf2 $11) 45. Qe1+ {[%emt 0:00:43]} Kf4 {[%emt 0:00:01]} 46. Qh4+ {[%emt 0:00:16]} Ng4 {[%emt 0:01:41]} 47. Rf3+ {[%emt 0:00:59]} Ke5 {[%emt 0:00:01]} 48. Qg3+ $1 {[%emt 0:01:07]} Kd5 {[%emt 0:00:38]} 49. Bb3+ {[%emt 0:03:15]} Kc5 {[%emt 0:00:17]} 50. Rc3+ $1 {[%emt 0:01:51]} Kb4 $1 {[%emt 0:00:48]} (50... Kxb5 $2 51. Qd3+ Ka5 52. Qxe4 $18) 51. Rc2 $1 {[%emt 0:01:06]} Ne3 {[%emt 0:01:30]} (51... Kxb5 52. Qd3+ Ka5 53. Qxe4 Qb5 54. Qd4) 52. Qe1+ {[%emt 0:00:38]} Kxb5 {[%emt 0:00:01]} 53. Qe2+ {[%emt 0:00:18]} Ka5 {[%emt 0:00:14]} 54. Qd2+ $1 {[%emt 0:00:32]} Rb4 {[%emt 0:00:06]} 55. Rc3 {[%emt 0:00:14]} Ng4 $2 {[%emt 0:03:08][%mdl 8192]} (55... Nf1 $11 56. Qg5+ f5) 56. Bc4 $1 $18 {[%emt 0:01:17]} Qf2 {[%emt 0:00:23]} 57. Be2 {[%emt 0:00:01]} Qd4 {[%emt 0:00:20] [#]} 58. Rd3 $1 {[%emt 0:00:57]} Qc4+ {[%emt 0:01:44]} (58... Qb2+ $142 59. Qxb2 Rxb2+ 60. Kxb2 Kb4) 59. Ka3 {[%emt 0:00:04]} (59. Ka1 $142 {White wants to mate with Ra3+.} Ka4 60. Qd1+ Kb5 61. Rb3 (61. Rd5+ exd5 62. Qxd5+ Kb6 $18)) 59... Ne5 {[%emt 0:00:23] [#]} (59... Qf4 $18) 60. Re3 $1 {[%emt 0:00:26]} Kb6 {[%emt 0:01:37]} 61. Qd6+ {[%emt 0:00:46]} (61. Bxc4 Nxc4+ 62. Kxb4 Nxd2 $11) 61... Kb7 {[%emt 0:00:31]} 62. Qe7+ {[%emt 0:00:21]} (62. Bxc4 Nxc4+ 63. Kxb4 Nxd6 $17) 62... Qc7 {[%emt 0:00:30]} 63. Qxb4+ {[%emt 0:00:04]} 1-0

[Event "7th Sharjah Masters 2024"]
[Site "Sharjah"]
[Date "2024.05.21"]
[Round "8.14"]
[White "Ter-Sahakyan, Samvel"]
[Black "Pranav, V."]
[Result "1/2-1/2"]
[ECO "E46"]
[WhiteElo "2652"]
[BlackElo "2587"]
[Annotator "TA"]
[PlyCount "78"]
[EventDate "2024.05.13"]
[EventType "swiss"]
[EventCountry "UAE"]
[SourceTitle "playchess.com"]
[Source "ChessBase"]
[SourceQuality "1"]
[TimeControl "5400+30"]

{[%evp 13,78,0,0,0,0,0,0,0,8,0,0,0,-5,0,2,0,0,-3,0,0,0,-35,-12,-15,0,-4,13,7,14,0,0,0,0,0,0,0,0,0,0,0,0,0,0,0,0,0,0,0,0,0,0,0,0,0,0,0,0,0,0,0,0,0,0,0,0,0,0]} 1. d4 {[%emt 0:00:22]} Nf6 {[%emt 0:00:13]} 2. c4 {[%emt 0:00:49]} e6 {[%emt 0:00:17]} 3. Nc3 {[%emt 0:01:34]} Bb4 {[%emt 0:00:36]} 4. e3 {[%emt 0:01:00]} O-O {[%emt 0:01:10]} 5. Nge2 {[%emt 0:00:36]} Re8 {[%emt 0:02:19]} 6. a3 {[%emt 0:05:45]} Bf8 {[%emt 0:00:13]} 7. Ng3 {[%emt 0:02:35]} d5 {[%emt 0:02:25]} 8. Be2 {[%emt 0:01:55]} b6 {[%emt 0:03:46]} 9. O-O {[%emt 0:02:38]} Bb7 {[%emt 0:01:14]} 10. b4 {[%emt 0:02:20]} dxc4 {[%emt 0:12:48]} 11. Bxc4 {[%emt 0:02:39]} Nbd7 {[%emt 0:09:16]} 12. Rb1 {[%emt 0:19:00]} Qc8 {[%emt 0:04:30]} 13. Qb3 {[%emt 0:11:32]} c5 {[%emt 0:13:25]} 14. bxc5 {[%emt 0:10:44]} bxc5 {[%emt 0:00:09]} 15. Bxe6 {[%emt 0:05:25]} fxe6 {[%emt 0:02:30]} 16. Qxb7 {[%emt 0:00:15]} cxd4 {[%emt 0:00:05]} 17. Qxc8 {[%emt 0:00:56]} Raxc8 {[%emt 0:00:09]} 18. Nce4 {[%emt 0:01:11] The position is equal.} dxe3 {[%emt 0:00:09]} 19. Bxe3 {[%emt 0:00:15]} Bxa3 {[%emt 0:00:06]} 20. Bxa7 {[%emt 0:00:20]} Rc4 {[%emt 0:00:29]} 21. f3 {[%emt 0:00:42]} Nxe4 {[%emt 0:00:22]} 22. Nxe4 {[%emt 0:00:07]} Nf6 {[%emt 0:00:06]} 23. Rb3 {[%emt 0:04:07]} Be7 {[%emt 0:00:18]} 24. Nxf6+ {[%emt 0:00:20]} Bxf6 {[%emt 0:00:09]} 25. Be3 {[%emt 0:00:58]} Ra8 {[%emt 0:00:21]} 26. Rd3 {[%emt 0:00:33]} Rc2 {[%emt 0:00:07]} 27. Rd2 {[%emt 0:00:26]} Rxd2 {[%emt 0:00:08]} 28. Bxd2 $11 {[%emt 0:00:04][%mdl 4096] Endgame. KRB-KRB} Bd4+ {[%emt 0:00:10]} 29. Kh1 {[%emt 0:00:04]} Ra2 {[%emt 0:00:05]} 30. Bf4 {[%emt 0:00:29]} Kf7 {[%emt 0:00:17]} 31. h3 {[%emt 0:00:31]} Ra1 {[%emt 0:00:29]} 32. Rxa1 {[%emt 0:00:05]} Bxa1 {[%emt 0:00:04] KB-KB} 33. g4 {[%emt 0:00:06]} g6 {[%emt 0:00:18]} 34. Kg2 {[%emt 0:00:04]} h5 {[%emt 0:00:13]} 35. Kf1 {[%emt 0:00:03]} Kf6 {[%emt 0:00:23]} 36. Kg2 {[%emt 0:00:05]} Kf7 {[%emt 0:00:06]} 37. Kf1 {[%emt 0:00:03]} Kf6 {[%emt 0:00:06]} 38. Kg2 {[%emt 0:00:03]} Kf7 {[%emt 0:00:08]} 39. Kf1 {[%emt 0:00:02]} Kf6 {[%emt 0:00:14] An even fight not without its subleties.   Weighted Error Value: White=0.03 (flawless) /Black=0.02 (flawless) .  Inaccurate:     	White=1     	---        OK:         	White=12    	Black=9      Best:        	White=2     	---} 1/2-1/2

[Event "7th Sharjah Masters 2024"]
[Site "Sharjah"]
[Date "2024.05.21"]
[Round "8.15"]
[White "Radjabov, Teimour"]
[Black "Blohberger, Felix"]
[Result "1/2-1/2"]
[ECO "C67"]
[WhiteElo "2723"]
[BlackElo "2506"]
[Annotator "TA"]
[PlyCount "23"]
[EventDate "2024.05.13"]
[EventType "swiss"]
[EventCountry "UAE"]
[SourceTitle "playchess.com"]
[Source "ChessBase"]
[SourceQuality "1"]
[TimeControl "5400+30"]

{[%evp 18,23,19,28,8,12,8,26]} 1. e4 {[%emt 0:05:35]} e5 {[%emt 0:00:05]} 2. Nf3 {[%emt 0:00:05]} Nc6 {[%emt 0:00:04]} 3. Bb5 {[%emt 0:00:13]} Nf6 {[%emt 0:00:07]} 4. O-O {[%emt 0:00:06][%cal Bh1f1,Bf1e1,Be1e5][%mdl 32]} Nxe4 {[%emt 0:00:06]} 5. Re1 {[%emt 0:00:06]} Nd6 {[%emt 0:00:06]} 6. Nxe5 {[%emt 0:00:07]} Be7 {[%emt 0:00:10]} 7. Bf1 {[%emt 0:00:04]} Nxe5 {[%emt 0:00:07]} 8. Rxe5 {[%emt 0:00:04]} O-O {[%emt 0:00:10]} 9. d4 {[%emt 0:00:14]} Bf6 {[%emt 0:00:08]} 10. Re1 {[%emt 0:00:05]} Re8 {[%emt 0:00:57]} 11. c3 {[%emt 0:01:28]} Rxe1 {[%emt 0:00:54]} 12. Qxe1 {[%emt 0:00:01] An uneventful encounter.   Weighted Error Value: White=0.00 (flawless) /Black=0.00 (flawless) .  OK:         	---       	Black=1} 1/2-1/2

[Event "7th Sharjah Masters 2024"]
[Site "Sharjah"]
[Date "2024.05.21"]
[Round "8.16"]
[White "Sanal, Vahap"]
[Black "Fedoseev, Vladimir"]
[Result "1/2-1/2"]
[ECO "B01"]
[WhiteElo "2566"]
[BlackElo "2702"]
[Annotator "TA"]
[PlyCount "113"]
[EventDate "2024.05.13"]
[EventType "swiss"]
[EventCountry "UAE"]
[SourceTitle "playchess.com"]
[Source "ChessBase"]
[SourceQuality "1"]
[TimeControl "5400+30"]

{[%evp 36,113,6,0,0,0,0,0,18,25,39,37,37,0,0,-7,0,0,0,-16,0,-10,0,0,0,-8,-2,-11,0,0,0,-8,0,0,0,0,0,0,13,0,0,0,12,7,21,21,21,21,20,0,0,0,0,0,0,0,0,0,0,0,0,0,0,0,0,0,0,0,0,0,0,0,0,0,0,0,0,0,0,0]} 1. e4 {[%emt 1:31:00]} d5 {[%emt 1:31:00]} 2. exd5 {[%emt 0:00:30]} Qxd5 3. Nc3 {[%emt 0:00:30]} Qa5 {[%emt 0:01:00]} 4. d4 {[%emt 0:00:30]} Nf6 5. Nf3 {[%emt 0:00:30]} Bf5 {[%emt 0:01:00]} 6. Bc4 {[%emt 0:00:30]} e6 {[%emt 0:00:30]} 7. Bd2 {[%emt 0:00:30] B01: Scandinavian Defence.} Bb4 {[%emt 0:00:30]} 8. a3 {[%emt 0:00:30]} Bxc3 {[%emt 0:00:30]} 9. Bxc3 {[%emt 0:00:30]} Qb6 {[%emt 0:00:30]} 10. O-O {[%emt 0:00:30]} Nc6 {[%emt 0:00:30]} 11. b4 {[%emt 0:00:30]} Bg4 {[%emt 0:00:30] 11...a6 gains popularity.} 12. Bb2 {[%emt 0:00:30]} O-O-O $146 {[%emt 0:00:30]} ({Predecessor:} 12... Rd8 13. c3 e5 14. Qb3 O-O 15. Nxe5 Nxe5 16. dxe5 Ne4 17. Bc1 Qg6 18. Kh1 Nd2 19. Bxd2 Rxd2 {1-0 Gao,C-Rollot,F (1695) Wch U14 Girls 2014 (8)}) 13. c3 {[%emt 0:00:30]} e5 {[%emt 0:00:30]} 14. h3 {[%emt 0:00:30]} Bh5 {[%emt 0:00:30]} 15. Qc2 {[%emt 0:00:30]} Bxf3 {[%emt 0:00:30]} 16. Qf5+ {[%emt 0:00:30]} Rd7 {[%emt 0:00:30]} 17. Qxf3 {[%emt 0:00:30]} exd4 {[%emt 0:00:30]} 18. Qg3 {[%emt 0:00:30]} Rhd8 {[%emt 0:00:30]} 19. cxd4 {[%emt 0:00:30]} (19. Qxg7 $2 {loses.} Ne5 $19) 19... Nxd4 {[%emt 0:00:30]} 20. Rad1 {[%emt 0:00:30]} Nf5 {[%emt 0:00:30]} 21. Qb3 $1 {[%emt 0:00:30]} Nd6 22. Bd3 {[%emt 0:00:30]} Nfe4 {[%emt 0:01:00]} 23. Qc2 {[%emt 0:00:30]} (23. Bxg7 $2 {is the wrong capture.} Nxf2 24. Rxf2 Ne4 $19) 23... f5 {[%emt 0:00:30]} 24. Be5 {[%emt 0:00:30]} (24. Bc1 {simplifies} Kb8 25. Be3 Qc6 26. Qxc6 bxc6 27. Ba6) 24... g6 {[%emt 0:00:30]} 25. Bf4 {[%emt 0:00:30]} Nb5 {[%emt 0:00:30]} 26. Bxe4 {[%emt 0:00:30]} Nd4 {[%emt 0:00:30]} 27. Qc4 {[%emt 0:00:30]} ({Much weaker is} 27. Rxd4 Qxd4 28. Bxf5 gxf5 29. Qxf5 Qd5 $17) (27. Qa2 {simplifies} Qe6 28. Qxe6 Nxe6 29. Rxd7 Rxd7 30. Bxf5 gxf5 31. Bc1) 27... fxe4 {[%emt 0:00:30]} 28. Bg5 {[%emt 0:00:30]} Nf3+ $1 {[%emt 0:00:30]} 29. gxf3 {[%emt 0:00:30]} Rxd1 {[%emt 0:00:30]} 30. Bxd8 {[%emt 0:00:30]} Rxd8 {[%emt 0:00:30]} 31. fxe4 {[%emt 0:00:30]} Qf6 {[%emt 0:00:30]} 32. Qe2 {[%emt 0:00:30]} Qd4 {[%emt 0:00:30]} 33. e5 {[%emt 0:00:30]} Rd5 {[%emt 0:00:30]} 34. Re1 {[%emt 0:00:30]} Qf4 {[%emt 0:00:30]} 35. Kg2 {[%emt 0:00:30]} h5 {[%emt 0:00:30]} 36. Qf3 {[%emt 0:00:30]} Qxf3+ {[%emt 0:00:30]} 37. Kxf3 {[%emt 0:00:30]} Kd7 {[%emt 0:00:30]} 38. Ke4 {[%emt 0:00:30]} Ke6 {[%emt 0:00:30]} 39. f4 {[%emt 0:00:30]} Rd2 {[%emt 0:00:30]} 40. Rg1 {[%emt 0:00:30]} Kf7 {[%emt 0:00:30]} 41. Rc1 {[%emt 0:00:30]} c6 {[%emt 0:00:30]} 42. b5 {[%emt 0:00:30]} Re2+ {[%emt 0:00:30]} 43. Kf3 {[%emt 0:00:30]} Ra2 {[%emt 0:00:30]} 44. bxc6 {[%emt 0:00:30]} Rxa3+ {[%emt 0:00:30]} 45. Ke4 {[%emt 0:00:30]} bxc6 {[%emt 0:00:30]} 46. Rxc6 {[%emt 0:00:30]} Rxh3 {[%emt 0:00:30]} 47. Rc7+ {[%emt 0:00:30]} Ke6 {[%emt 0:00:30]} 48. Rc6+ {[%emt 0:00:30]} Kf7 {[%emt 0:00:30]} 49. Rf6+ {[%emt 0:00:30]} Kg7 {[%emt 0:00:30]} 50. Ra6 {[%emt 0:00:30]} Kf7 {[%emt 0:00:30]} 51. Rxa7+ {[%emt 0:00:30]} Ke6 52. Ra6+ {[%emt 0:00:30]} Kf7 53. Rf6+ {[%emt 0:00:30]} Kg7 54. Rb6 {[%emt 0:00:30]} Kf7 {[%emt 0:02:00]} 55. Rf6+ {[%emt 0:00:30]} Kg7 {[%emt 0:00:30]} 56. Rd6 {[%emt 0:00:30]} Kf7 {[%emt 0:00:30]} 57. Rf6+ {[%emt 0:00:30]} 1/2-1/2